bitfinex/quotes_BTCUSD_20240815
["timestamp","ask_amount","ask_price","bid_price","bid_amount"]
[1723731484324,0.1912,59473.0,59469.0,0.023]
[1723731484521,0.359345,59473.0,59469.0,0.023]
[1723731485562,0.1912,59473.0,59469.0,0.023]
[1723731485763,0.1912,59473.0,59470.0,0.16815]
[1723731485963,0.1912,59473.0,59471.0,0.023]
[1723731486178,0.1912,59473.0,59467.0,0.023]
[1723731486388,0.168157,59468.0,59467.0,0.023]
[1723731486595,0.33970054,59472.0,59467.0,0.191159]
[1723731486805,0.17155454,59472.0,59467.0,0.191159]
[1723731487022,0.17155454,59472.0,59467.0,0.023]
[1723731487023,0.168149,59471.0,59467.0,0.023]
[1723731487229,0.168157,59468.0,59467.0,0.023]
[1723731487480,0.168183,59459.0,59448.0,0.2056]
[1723731487703,0.168178,59461.0,59448.0,0.25994338]
[1723731487908,0.168174,59462.0,59456.0,0.16819]
[1723731488156,0.16817,59464.0,59458.0,0.168185]
[1723731488362,0.3588,59468.0,59464.0,0.168167]
[1723731488535,0.16817,59464.0,59458.0,0.168183]
[1723731488733,0.36619247,59468.0,59459.0,0.168181]
[1723731488957,0.168167,59465.0,59459.0,0.168181]
[1723731489184,0.168167,59465.0,59460.0,0.19118]
[1723731489388,0.36619247,59468.0,59460.0,0.19118]
[1723731489389,0.36619247,59468.0,59460.0,0.023]
[1723731489598,0.526958,59468.0,59461.0,0.39247289]
[1723731489797,0.526958,59468.0,59463.0,0.16817]
[1723731490005,0.336278,59475.0,59459.0,0.023]
[1723731490006,0.155726,59474.0,59459.0,0.023]
[1723731490211,0.155726,59474.0,59464.0,0.023]
[1723731490212,0.00737176,59472.0,59464.0,0.023]
[1723731490413,0.2054,59473.0,59465.0,0.336331]
[1723731490621,0.168146,59472.0,59466.0,0.191162]
[1723731491088,0.37437,59473.0,59467.0,0.168158]
[1723731491292,0.37437,59473.0,59468.0,0.191157]
[1723731491496,0.336299,59471.0,59466.0,0.023]
[1723731491733,0.336299,59471.0,59469.0,0.023]
[1723731492000,0.336299,59471.0,59466.0,0.023]
[1723731492001,0.50448,59467.0,59466.0,0.023]
[1723731492239,0.8408,59467.0,59466.0,0.023]
[1723731492441,0.8408,59467.0,59450.0,0.336416]
[1723731492442,0.336336,59465.0,59450.0,0.336416]
[1723731492653,0.336336,59465.0,59455.0,0.168193]
[1723731492654,0.168181,59460.0,59455.0,0.168193]
[1723731492867,0.168172,59463.0,59457.0,0.168187]
[1723731493080,0.168163,59466.0,59450.0,0.035123]
[1723731493288,0.168169,59464.0,59459.0,0.168181]
[1723731493847,0.34387994,59466.0,59459.0,0.168181]
[1723731493848,0.168166,59465.0,59459.0,0.168181]
[1723731494200,0.1925,59467.0,59461.0,0.336354]
[1723731494401,0.336298,59471.0,59462.0,0.359348]
[1723731494615,0.17546143,59470.0,59464.0,0.168166]
[1723731494845,0.17546143,59470.0,59465.0,0.023]
[1723731494846,0.168152,59470.0,59465.0,0.023]
[1723731495052,0.168158,59468.0,59465.0,0.023]
[1723731495265,0.168158,59468.0,59456.0,0.336379]
[1723731495266,0.168165,59466.0,59464.0,0.023]
[1723731495476,0.168165,59466.0,59461.0,0.168177]
[1723731495688,0.16816,59467.0,59462.0,0.023]
[1723731496153,0.16816,59467.0,59462.0,0.191174]
[1723731496400,0.168156,59469.0,59464.0,0.168168]
[1723731496639,0.168163,59466.0,59465.0,0.023]
[1723731497034,0.168163,59466.0,59462.0,0.023]
[1723731497240,0.336312,59469.0,59463.0,0.168171]
[1723731497503,0.168161,59467.0,59464.0,0.023]
[1723731497702,0.16816,59467.0,59464.0,0.023]
[1723731497906,0.16816,59467.0,59461.0,0.023]
[1723731498117,0.336312,59469.0,59461.0,0.0925727]
[1723731498345,0.168164,59466.0,59461.0,0.0925727]
[1723731498563,0.168172,59463.0,59461.0,0.023]
[1723731498765,0.168171,59464.0,59459.0,0.168182]
[1723731498973,0.168171,59463.0,59460.0,0.023]
[1723731499390,0.189,59462.0,59460.0,0.168179]
[1723731499603,0.189,59462.0,59461.0,0.023]
[1723731499807,0.336317,59468.0,59461.0,0.191176]
[1723731499808,0.17570085,59466.0,59461.0,0.191176]
[1723731500010,0.17570085,59466.0,59462.0,0.0359364]
[1723731500213,0.168166,59465.0,59463.0,0.023]
[1723731500418,0.168162,59467.0,59461.0,0.191177]
[1723731500643,0.336323,59467.0,59462.0,0.019118]
[1723731500841,0.168165,59466.0,59463.0,0.023]
[1723731501070,0.168167,59465.0,59461.0,0.023]
[1723731501281,0.32185454,59464.0,59448.0,0.485726]
[1723731501506,0.32185454,59464.0,59450.0,0.06802555]
[1723731501507,0.168192,59456.0,59450.0,0.06802555]
[1723731501716,0.168189,59457.0,59451.0,0.168204]
[1723731501938,0.168189,59457.0,59444.0,0.3044]
[1723731501939,0.1908,59458.0,59444.0,0.2044]
[1723731502147,0.1908,59458.0,59432.0,0.0073382]
[1723731502148,0.504684,59443.0,59432.0,0.0073382]
[1723731502368,1.03564,59443.0,59431.0,0.336522]
[1723731502631,1.54365054,59443.0,59427.0,0.168272]
[1723731502839,1.69455054,59443.0,59428.0,0.16827]
[1723731503055,1.35809454,59443.0,59433.0,0.168255]
[1723731503266,1.35809454,59443.0,59428.0,0.336536]
[1723731503475,0.513628,59443.0,59430.0,0.336526]
[1723731503677,0.513628,59443.0,59426.0,0.2044]
[1723731503678,0.850084,59443.0,59432.0,0.336514]
[1723731503908,0.850084,59443.0,59436.0,0.168247]
[1723731504112,1.36309454,59443.0,59430.0,0.168263]
[1723731504324,1.69955054,59443.0,59428.0,0.336537]
[1723731504538,1.69955054,59443.0,59426.0,0.2044]
[1723731504744,1.69955054,59443.0,59428.0,0.168269]
[1723731504947,1.69955054,59443.0,59430.0,0.168264]
[1723731505380,1.70710433,59443.0,59430.0,0.168264]
[1723731505586,1.70710433,59443.0,59428.0,0.168268]
[1723731505798,1.70710433,59443.0,59426.0,0.2044]
[1723731506010,1.87781476,59443.0,59422.0,0.33657]
[1723731506226,2.04356033,59443.0,59422.0,0.51466362]
[1723731506442,0.1929,59442.0,59417.0,0.0009086]
[1723731506660,0.336572,59423.0,59417.0,0.0009086]
[1723731506874,0.1929,59422.0,59417.0,0.0009086]
[1723731507085,0.168294,59420.0,59417.0,0.0009086]
[1723731507303,0.336581,59421.0,59417.0,0.0009086]
[1723731507509,0.504897,59418.0,59417.0,0.0009086]
[1723731507741,0.1634,59420.0,59417.0,0.0009086]
[1723731507742,0.331694,59420.0,59417.0,0.0009086]
[1723731507946,0.1634,59420.0,59417.0,0.0009086]
[1723731508170,0.361188,59422.0,59417.0,0.0009086]
[1723731508377,0.168295,59420.0,59417.0,0.0009086]
[1723731508579,0.336587,59420.0,59417.0,0.0009086]
[1723731508792,0.336581,59421.0,59417.0,0.0009086]
[1723731509016,0.168299,59418.0,59417.0,0.0009086]
[1723731509227,1.01304954,59418.0,59417.0,0.0009086]
[1723731509442,1.21854954,59418.0,59417.0,0.0009086]
[1723731509652,1.55514754,59418.0,59417.0,0.0009086]
[1723731509858,1.71924002,59418.0,59417.0,0.0009086]
[1723731510378,1.88204002,59418.0,59417.0,0.0009086]
[1723731511418,1.90504002,59418.0,59417.0,0.0019086]
[1723731511623,1.89304002,59418.0,59417.0,0.0009086]
[1723731511877,1.81794754,59418.0,59417.0,0.0009086]
[1723731512089,1.81794754,59418.0,59417.0,0.0019086]
[1723731512090,1.82694754,59418.0,59417.0,0.0019086]
[1723731512297,1.83394754,59418.0,59417.0,0.0019086]
[1723731513359,0.2215,59418.0,59417.0,0.0019086]
[1723731513581,0.007,59418.0,59417.0,0.0009086]
[1723731513785,0.175299,59418.0,59417.0,0.0009086]
[1723731513995,0.012,59418.0,59417.0,0.0019086]
[1723731514209,0.348598,59418.0,59417.0,0.0019086]
[1723731514423,0.852495,59418.0,59417.0,0.0009086]
[1723731514639,1.56834754,59418.0,59417.0,0.0019086]
[1723731514847,1.22074954,59418.0,59417.0,0.0019086]
[1723731515261,1.22774954,59418.0,59417.0,0.0019086]
[1723731515673,0.89115154,59418.0,59417.0,0.0019086]
[1723731516090,1.22774954,59418.0,59417.0,0.0019086]
[1723731516722,1.56434754,59418.0,59417.0,0.0019086]
[1723731516932,1.72378229,59418.0,59417.0,0.0019086]
[1723731517141,1.74678229,59418.0,59417.0,0.0019086]
[1723731517551,1.41018429,59418.0,59417.0,0.0019086]
[1723731517791,1.25074954,59418.0,59417.0,0.0019086]
[1723731518002,0.016,59418.0,59417.0,0.0019086]
[1723731518420,0.016,59418.0,59417.0,0.1702106]
[1723731518635,0.016,59418.0,59417.0,0.5298146]
[1723731518847,0.016,59418.0,59417.0,0.8664186]
[1723731519507,0.016,59418.0,59417.0,0.5298146]
[1723731519721,0.016,59418.0,59417.0,0.0249086]
[1723731519928,0.007,59418.0,59417.0,0.0239086]
[1723731520130,0.011,59418.0,59417.0,0.0239086]
[1723731520360,0.179299,59418.0,59417.0,0.0239086]
[1723731520576,0.168299,59418.0,59417.0,0.0239086]
[1723731520785,1.19774954,59418.0,59417.0,0.0239086]
[1723731520986,1.19774954,59418.0,59417.0,0.0269086]
[1723731520987,1.34604954,59418.0,59417.0,0.0269086]
[1723731521193,1.67964754,59418.0,59417.0,0.0269086]
[1723731521398,1.34304954,59418.0,59417.0,0.0269086]
[1723731521815,1.34304954,59418.0,59417.0,0.0239086]
[1723731522023,1.34304954,59418.0,59417.0,0.0009086]
[1723731522024,1.51101269,59418.0,59417.0,0.0009086]
[1723731522231,1.61101269,59418.0,59417.0,0.0009086]
[1723731522437,1.94861069,59418.0,59417.0,0.0009086]
[1723731523680,2.28520869,59418.0,59417.0,0.0009086]
[1723731524094,1.94861069,59418.0,59417.0,0.0009086]
[1723731524298,1.94761069,59418.0,59417.0,0.0009086]
[1723731524511,1.95161069,59418.0,59417.0,0.0009086]
[1723731524715,1.78164754,59418.0,59417.0,0.0009086]
[1723731524921,1.44504954,59418.0,59417.0,0.0009086]
[1723731525139,1.45404954,59418.0,59417.0,0.0019086]
[1723731525343,0.69085354,59418.0,59417.0,0.0019086]
[1723731525554,0.69821112,59418.0,59417.0,0.0019086]
[1723731525767,1.70800512,59418.0,59417.0,0.0019086]
[1723731525983,1.70064754,59418.0,59417.0,0.0019086]
[1723731526588,0.855897,59418.0,59417.0,0.0019086]
[1723731526792,0.189299,59418.0,59417.0,0.0019086]
[1723731526970,0.021,59418.0,59417.0,0.1702106]
[1723731527217,0.021,59418.0,59417.0,0.90519063]
[1723731527420,0.021,59418.0,59417.0,1.61004917]
[1723731527834,0.021,59418.0,59417.0,1.57127714]
[1723731527987,0.011,59418.0,59417.0,1.57127714]
[1723731528397,0.336547,59428.0,59417.0,0.72876714]
[1723731528598,0.225614,59441.0,59418.0,0.023]
[1723731528599,0.168279,59425.0,59418.0,0.023]
[1723731528773,0.168279,59425.0,59419.0,0.168295]
[1723731528976,0.336555,59426.0,59420.0,0.023]
[1723731529308,0.336518,59433.0,59421.0,0.168289]
[1723731529309,0.168275,59427.0,59421.0,0.168289]
[1723731529504,0.168277,59426.0,59422.0,0.023]
[1723731529925,0.168285,59423.0,59422.0,0.023]
[1723731530078,0.168289,59422.0,59418.0,0.023]
[1723731530277,0.168291,59421.0,59418.0,0.023]
[1723731530937,0.1939,59428.0,59419.0,0.002]
[1723731530938,0.168293,59420.0,59419.0,0.002]
[1723731531339,0.1939,59428.0,59418.0,0.023]
[1723731531552,0.336532,59430.0,59421.0,0.168289]
[1723731531759,0.152,59431.0,59422.0,0.023]
[1723731531961,0.504855,59423.0,59422.0,0.023]
[1723731532169,0.152,59431.0,59419.0,0.006]
[1723731532170,0.001,59420.0,59419.0,0.006]
[1723731532375,0.001,59420.0,59419.0,0.029]
[1723731532778,0.168288,59422.0,59419.0,0.023]
[1723731533017,0.002,59428.0,59417.0,0.0239086]
[1723731533018,0.168283,59424.0,59417.0,0.0239086]
[1723731533228,0.002,59428.0,59427.0,0.336547]
[1723731533450,0.002,59428.0,59427.0,0.023]
[1723731533656,0.17027,59428.0,59427.0,0.023]
[1723731533858,0.506811,59428.0,59427.0,0.023]
[1723731534075,0.841352,59428.0,59427.0,0.023]
[1723731534280,1.177893,59428.0,59427.0,0.023]
[1723731534500,1.364793,59428.0,59427.0,0.023]
[1723731534847,1.367793,59428.0,59427.0,0.023]
[1723731535056,0.844352,59428.0,59427.0,0.023]
[1723731535256,0.846352,59428.0,59427.0,0.023]
[1723731535528,1.182893,59428.0,59427.0,0.023]
[1723731535921,0.846352,59428.0,59427.0,0.023]
[1723731536723,0.509811,59428.0,59427.0,0.023]
[1723731536894,0.005,59428.0,59427.0,1.199267]
[1723731537097,0.005,59428.0,59427.0,1.535814]
[1723731537425,0.005,59428.0,59427.0,1.74107854]
[1723731537583,0.005,59428.0,59427.0,2.17762554]
[1723731537998,0.005,59428.0,59427.0,1.84107854]
[1723731538202,0.002,59428.0,59427.0,1.84107854]
[1723731538404,0.33647,59441.0,59433.0,0.03371]
[1723731538405,0.336471,59441.0,59433.0,0.03371]
[1723731538629,0.336468,59441.0,59434.0,0.023]
[1723731538831,0.16824,59439.0,59434.0,0.191251]
[1723731539033,0.168237,59440.0,59434.0,0.191251]
[1723731539316,0.168234,59441.0,59434.0,0.359505]
[1723731539520,0.168234,59441.0,59436.0,0.168247]
[1723731539727,0.169058,59442.0,59437.0,0.191244]
[1723731540145,0.000827,59442.0,59440.0,0.168234]
[1723731540351,0.000827,59442.0,59441.0,0.023]
[1723731540816,0.000827,59442.0,59440.0,0.191236]
[1723731541020,0.002,59441.0,59440.0,0.023]
[1723731541227,0.168237,59440.0,59435.0,0.16825]
[1723731541430,0.168237,59440.0,59436.0,0.023]
[1723731542074,0.168234,59441.0,59436.0,0.168246]
[1723731542322,0.168234,59441.0,59434.0,0.023]
[1723731542323,0.336468,59441.0,59437.0,0.023]
[1723731542541,0.001,59440.0,59437.0,0.027301]
[1723731542742,0.001,59440.0,59439.0,0.504718]
[1723731543184,0.001,59440.0,59439.0,0.527718]
[1723731543397,0.001,59440.0,59439.0,0.60389379]
[1723731543608,0.001,59440.0,59439.0,1.44652733]
[1723731543819,0.001,59440.0,59439.0,1.88500633]
[1723731544029,0.002,59440.0,59439.0,1.88300633]
[1723731544442,0.001,59440.0,59439.0,1.88500633]
[1723731544652,0.000827,59442.0,59441.0,1.177638]
[1723731544854,0.000827,59442.0,59441.0,1.37219254]
[1723731545032,0.000827,59442.0,59441.0,1.03572454]
[1723731545243,0.000827,59442.0,59441.0,1.37219254]
[1723731545850,0.000827,59442.0,59441.0,1.03572454]
[1723731546093,0.001827,59442.0,59441.0,1.04472454]
[1723731546255,0.001827,59442.0,59441.0,0.032]
[1723731546584,0.001827,59442.0,59441.0,0.200234]
[1723731547031,0.001827,59442.0,59441.0,0.032]
[1723731547235,0.001827,59442.0,59441.0,0.200234]
[1723731547439,0.001827,59442.0,59441.0,0.032]
[1723731547823,0.002827,59442.0,59441.0,0.033]
[1723731548279,0.002827,59442.0,59441.0,0.537702]
[1723731549067,0.002827,59442.0,59441.0,0.033]
[1723731549272,0.002827,59442.0,59441.0,0.201234]
[1723731549441,0.002827,59442.0,59441.0,0.537702]
[1723731550048,0.002827,59442.0,59441.0,0.201234]
[1723731550372,0.002827,59442.0,59441.0,0.537702]
[1723731550784,0.002827,59442.0,59441.0,0.87417]
[1723731550991,0.002827,59442.0,59441.0,1.04572454]
[1723731551273,0.002827,59442.0,59441.0,1.56569254]
[1723731551487,0.002827,59442.0,59441.0,1.22922454]
[1723731551702,0.002827,59442.0,59441.0,0.99275654]
[1723731551910,0.002827,59442.0,59441.0,1.66569254]
[1723731552123,0.002827,59442.0,59441.0,1.32922454]
[1723731552330,0.1949,59460.0,59443.0,0.002]
[1723731552539,0.51466362,59459.0,59456.0,0.168191]
[1723731552748,0.36308,59460.0,59455.0,0.168193]
[1723731552957,0.36308,59460.0,59456.0,0.0840988]
[1723731553168,0.168183,59459.0,59456.0,0.0840988]
[1723731553372,0.1949,59460.0,59453.0,0.168198]
[1723731553373,0.168186,59458.0,59453.0,0.168198]
[1723731553587,0.2049,59460.0,59454.0,0.336394]
[1723731553791,0.168192,59456.0,59453.0,0.0820915]
[1723731553998,0.336369,59459.0,59446.0,0.187]
[1723731554210,0.336396,59454.0,59447.0,0.08440945]
[1723731554419,0.019,59460.0,59448.0,0.023]
[1723731554420,0.168211,59449.0,59448.0,0.023]
[1723731554632,0.168215,59448.0,59443.0,0.001]
[1723731554845,0.168215,59448.0,59444.0,0.0338463]
[1723731555054,0.168217,59447.0,59444.0,0.0338463]
[1723731555257,0.168217,59447.0,59443.0,0.001]
[1723731555479,0.1845,59453.0,59443.0,0.001]
[1723731555480,0.168225,59444.0,59443.0,0.001]
[1723731555686,0.169213,59449.0,59448.0,0.008]
[1723731556093,0.505635,59449.0,59448.0,0.008]
[1723731556300,0.842057,59449.0,59448.0,0.008]
[1723731556716,1.178479,59449.0,59448.0,0.008]
[1723731556928,0.842057,59449.0,59448.0,0.008]
[1723731557141,0.842057,59449.0,59448.0,0.009]
[1723731557344,0.841057,59449.0,59448.0,0.001]
[1723731557551,1.53743354,59449.0,59448.0,0.001]
[1723731557962,1.69553354,59449.0,59448.0,0.001]
[1723731558311,1.5318302,59449.0,59448.0,0.001]
[1723731558499,1.523979,59449.0,59448.0,0.004]
[1723731558702,1.523979,59449.0,59448.0,0.003]
[1723731558905,1.523979,59449.0,59436.0,0.336494]
[1723731558906,0.168233,59442.0,59437.0,0.168244]
[1723731559124,0.168233,59442.0,59438.0,0.023]
[1723731559714,0.683922,59449.0,59438.0,0.023]
[1723731559715,0.336454,59444.0,59438.0,0.023]
[1723731559937,0.168239,59439.0,59438.0,0.023]
[1723731560127,0.693618,59439.0,59438.0,0.023]
[1723731560333,0.357139,59439.0,59438.0,0.029]
[1723731560536,0.168237,59440.0,59438.0,0.029]
[1723731560757,0.1581,59449.0,59439.0,0.187963]
[1723731560950,0.1581,59449.0,59438.0,0.023]
[1723731560951,0.336434,59447.0,59440.0,0.023]
[1723731561197,0.336479,59439.0,59438.0,0.023]
[1723731561403,0.504727,59438.0,59437.0,0.007]
[1723731561577,0.504727,59438.0,59434.0,0.0009086]
[1723731561578,0.504753,59435.0,59434.0,0.0009086]
[1723731562038,1.023155,59435.0,59434.0,0.0009086]
[1723731562234,1.359657,59435.0,59434.0,0.0009086]
[1723731562348,1.023155,59435.0,59434.0,0.0009086]
[1723731562975,1.53121154,59435.0,59434.0,0.0009086]
[1723731563422,2.04831154,59435.0,59434.0,0.0009086]
[1723731563592,2.15131154,59435.0,59434.0,0.0009086]
[1723731563793,2.48781354,59435.0,59434.0,0.0009086]
[1723731564286,2.53990649,59435.0,59434.0,0.0009086]
[1723731564455,2.54190649,59435.0,59434.0,0.0009086]
[1723731565301,1.83840449,59435.0,59434.0,0.0009086]
[1723731565496,1.73840449,59435.0,59434.0,0.0009086]
[1723731565700,1.514757,59435.0,59434.0,0.0009086]
[1723731566533,1.178255,59435.0,59434.0,0.0009086]
[1723731566643,0.841753,59435.0,59434.0,0.0009086]
[1723731567482,1.178255,59435.0,59434.0,0.0009086]
[1723731567707,0.841753,59435.0,59434.0,0.0009086]
[1723731569729,1.34980954,59435.0,59434.0,0.0009086]
[1723731569913,1.68631154,59435.0,59434.0,0.0009086]
[1723731570113,2.02281354,59435.0,59434.0,0.0009086]
[1723731570856,2.51142351,59435.0,59434.0,0.0009086]
[1723731571094,2.52292151,59435.0,59434.0,0.0009086]
[1723731571503,2.57309856,59435.0,59434.0,0.0009086]
[1723731571709,2.57109856,59435.0,59434.0,0.0009086]
[1723731571892,2.58509856,59435.0,59434.0,0.0009086]
[1723731572131,2.58209856,59435.0,59434.0,0.0009086]
[1723731572337,2.53192151,59435.0,59434.0,0.0009086]
[1723731572576,2.52292151,59435.0,59434.0,0.0019086]
[1723731572771,2.51792151,59435.0,59434.0,0.0009086]
[1723731572974,2.51792151,59435.0,59434.0,0.0019086]
[1723731572975,2.58109856,59435.0,59434.0,0.0019086]
[1723731573175,2.58609856,59435.0,59434.0,0.0019086]
[1723731573644,2.53592151,59435.0,59434.0,0.0019086]
[1723731574292,2.48381354,59435.0,59434.0,0.0019086]
[1723731574724,2.5359276,59435.0,59434.0,0.0019086]
[1723731574899,2.64308842,59435.0,59434.0,0.0019086]
[1723731575343,2.706856,59435.0,59434.0,0.0019086]
[1723731575755,2.706856,59435.0,59415.0,0.0009097]
[1723731575756,1.850191,59418.0,59415.0,0.0009097]
[1723731575966,2.02174554,59418.0,59415.0,0.0009097]
[1723731577639,1.68514754,59418.0,59415.0,0.0009097]
[1723731577838,1.68614754,59418.0,59417.0,0.0059086]
[1723731578018,1.68614754,59418.0,59417.0,0.0289086]
[1723731578435,2.63089808,59418.0,59417.0,0.0059086]
[1723731578625,2.63089808,59418.0,59415.0,0.0009097]
[1723731578626,1.51474,59416.0,59415.0,0.0009097]
[1723731578825,2.35620354,59416.0,59415.0,0.0009097]
[1723731579064,2.29114908,59416.0,59415.0,0.0009097]
[1723731579981,2.29114908,59416.0,59415.0,0.0019097]
[1723731579982,2.30114908,59416.0,59415.0,0.0019097]
[1723731580199,3.02714908,59416.0,59415.0,0.0019097]
[1723731580629,2.51898554,59416.0,59415.0,0.0019097]
[1723731580849,1.35637654,59416.0,59415.0,0.0019097]
[1723731581072,0.704713,59416.0,59415.0,0.0019097]
[1723731581279,0.018,59416.0,59415.0,0.0019097]
[1723731581483,0.859522,59416.0,59415.0,0.0019097]
[1723731581704,0.018,59416.0,59415.0,0.0019097]
[1723731581914,0.018,59416.0,59415.0,0.8434467]
[1723731582113,0.018,59416.0,59415.0,1.0101467]
[1723731582255,0.008,59416.0,59415.0,0.0239097]
[1723731582464,0.512913,59416.0,59415.0,0.0009097]
[1723731582679,0.520913,59416.0,59415.0,0.0019097]
[1723731582884,0.504913,59416.0,59415.0,0.0009097]
[1723731583059,0.168304,59416.0,59415.0,0.0009097]
[1723731583264,0.169304,59416.0,59415.0,0.0089097]
[1723731583460,0.505913,59416.0,59415.0,0.0319097]
[1723731583659,0.504913,59416.0,59415.0,0.0239097]
[1723731583930,0.504913,59416.0,59415.0,0.0019097]
[1723731583931,0.007,59416.0,59415.0,0.0019097]
[1723731584050,0.007,59416.0,59415.0,0.5068317]
[1723731584258,0.006,59416.0,59415.0,0.5288317]
[1723731584837,0.168289,59422.0,59416.0,0.168303]
[1723731585040,0.168282,59424.0,59417.0,0.023]
[1723731585266,0.336492,59437.0,59417.0,0.023]
[1723731585267,0.336508,59434.0,59423.0,0.1478]
[1723731585475,0.144,59437.0,59424.0,0.023]
[1723731585476,0.51466362,59433.0,59424.0,0.023]
[1723731585652,0.168268,59429.0,59424.0,0.191281]
[1723731585866,0.168267,59430.0,59424.0,0.023]
[1723731586079,0.168268,59429.0,59424.0,0.19128]
[1723731586256,0.168279,59425.0,59424.0,0.023]
[1723731586456,0.09327606,59438.0,59419.0,0.023]
[1723731586457,0.168288,59422.0,59419.0,0.023]
[1723731586615,0.09327606,59438.0,59419.0,0.023]
[1723731586616,0.336565,59424.0,59419.0,0.023]
[1723731586817,0.57803993,59437.0,59419.0,0.023]
[1723731586818,0.336579,59422.0,59419.0,0.023]
[1723731587022,0.50488,59420.0,59419.0,0.023]
[1723731587213,0.504913,59416.0,59415.0,0.0009097]
[1723731587666,0.33055454,59425.0,59415.0,0.0009097]
[1723731587667,0.33659,59420.0,59415.0,0.0009097]
[1723731587993,0.1683,59418.0,59415.0,0.0009097]
[1723731588280,0.66711354,59425.0,59415.0,0.1692147]
[1723731588281,0.159,59425.0,59415.0,0.1692147]
[1723731588418,0.001,59416.0,59415.0,0.0009097]
[1723731588638,0.001,59416.0,59415.0,0.1692167]
[1723731588850,0.001,59416.0,59415.0,0.5058317]
[1723731589047,0.17428,59425.0,59424.0,0.001]
[1723731589250,0.168278,59426.0,59421.0,0.19129]
[1723731589524,0.168283,59424.0,59421.0,0.023]
[1723731589731,0.1589,59431.0,59420.0,0.023]
[1723731589732,0.336541,59428.0,59420.0,0.023]
[1723731589901,0.336538,59429.0,59419.0,0.02615289]
[1723731590107,0.336506,59435.0,59424.0,0.168282]
[1723731590108,0.00810799,59434.0,59424.0,0.168282]
[1723731590313,0.168268,59429.0,59425.0,0.023]
[1723731590475,0.168271,59428.0,59425.0,0.023]
[1723731590676,0.336547,59428.0,59424.0,0.023]
[1723731591061,0.168277,59426.0,59421.0,0.16829]
[1723731591221,0.345541,59428.0,59422.0,0.191286]
[1723731591421,0.009,59428.0,59421.0,0.336581]
[1723731591598,0.009,59428.0,59427.0,0.168273]
[1723731591799,0.009,59428.0,59427.0,0.52782]
[1723731592122,0.007,59428.0,59427.0,0.52782]
[1723731592297,0.007,59428.0,59427.0,0.023]
[1723731592514,0.168263,59431.0,59426.0,0.168276]
[1723731592717,0.168261,59432.0,59427.0,0.191273]
[1723731592906,0.004,59428.0,59427.0,0.191273]
[1723731593313,0.0039,59428.0,59427.0,0.52782]
[1723731593687,0.00369752,59428.0,59427.0,1.37246854]
[1723731594098,0.009,59431.0,59430.0,0.841325]
[1723731594306,0.009,59431.0,59430.0,0.69934954]
[1723731594507,0.017,59431.0,59430.0,0.023]
[1723731594684,0.017,59431.0,59430.0,0.168265]
[1723731594865,0.009,59431.0,59430.0,0.191265]
[1723731595831,0.009,59431.0,59430.0,0.196265]
[1723731596470,0.168256,59433.0,59430.0,0.028]
[1723731596626,0.067407,59446.0,59430.0,0.028]
[1723731596627,0.336475,59440.0,59431.0,0.023]
[1723731596832,0.168259,59432.0,59431.0,0.023]
[1723731597032,0.168251,59435.0,59431.0,0.023]
[1723731597440,0.168254,59434.0,59431.0,0.023]
[1723731597680,0.336502,59435.0,59431.0,0.023]
[1723731597842,0.184126,59442.0,59431.0,0.0594545]
[1723731598043,0.336492,59437.0,59431.0,0.191261]
[1723731598222,0.168251,59435.0,59432.0,0.0532795]
[1723731598434,0.168251,59435.0,59433.0,0.023]
[1723731598671,0.168251,59435.0,59431.0,0.023]
[1723731598853,0.168254,59434.0,59431.0,0.023]
[1723731599029,0.168259,59432.0,59431.0,0.002]
[1723731599411,0.168259,59432.0,59431.0,0.001]
[1723731599568,0.504778,59432.0,59431.0,0.001]
[1723731599733,0.841297,59432.0,59431.0,0.001]
[1723731599952,0.504778,59432.0,59431.0,0.001]
[1723731600308,0.495704,59435.0,59431.0,0.005]
[1723731600466,0.168256,59433.0,59432.0,0.023]
[1723731600660,0.504769,59433.0,59432.0,0.023]
[1723731601066,0.841282,59433.0,59432.0,0.023]
[1723731601293,1.177795,59433.0,59432.0,0.023]
[1723731601952,0.12635723,59433.0,59418.0,0.1991]
[1723731602075,0.504769,59433.0,59432.0,0.003]
[1723731602286,1.49434954,59433.0,59432.0,0.003]
[1723731602506,1.49434954,59433.0,59432.0,0.007]
[1723731602507,2.01906254,59433.0,59432.0,0.007]
[1723731602708,2.07108581,59433.0,59432.0,0.007]
[1723731602909,2.07108581,59433.0,59432.0,0.004]
[1723731603106,2.16596752,59433.0,59432.0,0.004]
[1723731603305,2.16896752,59433.0,59432.0,0.004]
[1723731603528,2.16596752,59433.0,59432.0,0.004]
[1723731604309,0.168295,59420.0,59416.0,0.0009086]
[1723731604507,0.336582,59421.0,59416.0,0.0009086]
[1723731604780,0.17155454,59432.0,59418.0,0.168297]
[1723731605005,0.168285,59423.0,59419.0,0.168296]
[1723731605201,0.168285,59423.0,59418.0,0.168298]
[1723731605408,0.50485,59424.0,59419.0,0.023]
[1723731605619,0.336562,59425.0,59419.0,0.023]
[1723731605821,0.17155454,59432.0,59419.0,0.09598253]
[1723731606032,0.168277,59426.0,59420.0,0.484385]
[1723731606320,0.336522,59432.0,59423.0,0.336569]
[1723731606489,0.336522,59432.0,59421.0,0.023]
[1723731606490,0.3332,59433.0,59421.0,0.03049426]
[1723731606667,0.1882,59433.0,59424.0,0.023]
[1723731606869,0.1944,59439.0,59429.0,0.1874]
[1723731607068,0.336502,59435.0,59430.0,0.023]
[1723731607269,0.336502,59435.0,59430.0,0.191263]
[1723731607270,0.168252,59435.0,59430.0,0.191263]